bitfinex-derivatives/quotes_SOLF0:USTF0_20250630
["timestamp","ask_amount","ask_price","bid_price","bid_amount"]
[1751300351593,2.268,157.51,157.45,6.3494]
[1751300351892,6.349,157.47,157.43,6.3502]
[1751300352194,2.268,157.51,157.43,6.3502]
[1751300352494,9.15079241,157.5,157.42,37.34]
[1751300352694,46.49079241,157.5,157.43,6.37870447]
[1751300352890,46.49079241,157.5,157.42,37.34]
[1751300353087,46.49079241,157.5,157.38,37.34]
[1751300353282,9.15079241,157.47,157.39,6.3811561]
[1751300353485,6.3511,157.42,157.38,37.34]
[1751300353690,39.529,157.46,157.38,37.34]
[1751300354287,39.529,157.46,157.32,9.15079241]
[1751300354492,9.15079241,157.44,157.35,37.36]
[1751300354792,2.2055,157.43,157.37,6.3528]
[1751300355388,37.36,157.42,157.32,37.36]
[1751300355588,37.36,157.42,157.33,6.37493901]
[1751300355788,9.16070946,157.4,157.34,6.37493901]
[1751300355994,9.16070946,157.4,157.29,585.86]
[1751300356196,6.3535,157.36,157.3,6.42703185]
[1751300356493,9.16070946,157.4,157.29,585.86]
[1751300356494,9.16070946,157.4,157.31,6.42237693]
[1751300356693,9.16070946,157.4,157.29,585.86]
[1751300356889,9.16070946,157.4,157.3,6.42349625]
[1751300357096,9.16070946,157.4,157.31,6.42349625]
[1751300357295,9.16070946,157.4,157.3,6.3555]
[1751300357496,37.36,157.42,157.31,6.41821342]
[1751300357691,9.16070946,157.4,157.29,585.86]
[1751300357887,9.16070946,157.4,157.3,6.41892185]
[1751300358093,9.16070946,157.4,157.29,585.86]
[1751300358394,9.16070946,157.4,157.3,6.41837486]
[1751300358593,9.16070946,157.4,157.29,585.86]
[1751300358998,9.16070946,157.4,157.32,6.3546]
[1751300359203,6.3536,157.36,157.32,6.3546]
[1751300359397,9.16070946,157.4,157.32,6.3546]
[1751300359693,6.3535,157.36,157.32,6.3546]
[1751300359898,6.3535,157.36,157.29,585.86]
[1751300360101,46.36070946,157.4,157.3,6.40567099]
[1751300360398,46.36070946,157.4,157.29,585.86]
[1751300360703,37.2,157.4,157.3,15.56135718]
[1751300361003,2.2055,157.43,157.33,9.16070946]
[1751300361199,37.22,157.45,157.36,9.16070946]
[1751300361397,2.189,157.46,157.37,37.22]
[1751300362208,11.34970946,157.46,157.37,37.22]
[1751300362505,11.34970946,157.46,157.36,6.3532]
[1751300362506,6.3521,157.39,157.36,6.3532]
[1751300362696,46.38070946,157.43,157.34,37.22]
[1751300362898,6.3519,157.4,157.36,6.353]
[1751300363399,2.0602,157.42,157.36,6.353]
[1751300363603,6.3523,157.39,157.35,6.3535]
[1751300363799,2.0602,157.42,157.35,6.3535]
[1751300364196,6.3523,157.39,157.34,37.22]
[1751300364605,2.0602,157.42,157.36,6.353]
[1751300364795,6.3517,157.4,157.36,6.353]
[1751300365002,2.0602,157.42,157.36,6.353]
[1751300365201,2.0602,157.42,157.37,6.3528]
[1751300365402,6.3519,157.4,157.34,37.22]
[1751300365595,9.16065499,157.41,157.31,37.22]
[1751300365800,9.16065499,157.41,157.32,6.42149546]
[1751300366002,6.3531,157.37,157.31,37.22]
[1751300366202,9.16065499,157.41,157.32,6.41964202]
[1751300366404,6.3531,157.37,157.31,37.22]
[1751300366597,2.0602,157.42,157.32,6.42061202]
[1751300366801,2.0602,157.42,157.31,46.38065499]
[1751300367005,6.3515,157.41,157.32,6.41649756]
[1751300367203,6.3515,157.41,157.33,6.41649756]
[1751300367401,6.351,157.42,157.39,6.3517]
[1751300367703,39.409,157.46,157.36,37.22]
[1751300368004,2.189,157.46,157.37,15.575243]
[1751300368204,2.2327,157.5,157.36,37.22]
[1751300368205,2.2327,157.5,157.4,9.16065499]
[1751300368402,46.38065499,157.52,157.41,43.6307551]
[1751300368708,46.38065499,157.52,157.42,6.41022713]
[1751300368903,9.16065499,157.49,157.41,37.22]
[1751300369205,6.3505,157.43,157.38,37.22]
[1751300369507,37.22,157.48,157.38,37.22]
[1751300369508,37.22,157.48,157.39,6.41456646]
[1751300369711,4.1788,157.47,157.38,37.22]
[1751300370013,5.47844776,157.46,157.38,37.22]
[1751300370205,6.3512,157.41,157.38,43.5722]
[1751300370406,6.3512,157.41,157.38,6.3522]
[1751300370609,6.3512,157.41,157.35,42.69844776]
[1751300370906,6.3512,157.41,157.38,6.3524]
[1751300371405,6.351,157.42,157.38,6.3524]
[1751300371709,5.47844776,157.44,157.38,6.3524]
[1751300372009,6.2756,157.47,157.38,5.47844776]
[1751300372205,5.47844776,157.46,157.36,5.47844776]
[1751300372512,6.3512,157.42,157.37,6.37862957]
[1751300372710,6.3512,157.42,157.35,37.22]
[1751300373010,6.3512,157.42,157.38,6.3522]
[1751300373204,6.3513,157.41,157.38,6.3522]
[1751300373704,6.2756,157.47,157.35,37.22]
[1751300373908,5.47844776,157.42,157.35,37.22]
[1751300374105,5.47844776,157.42,157.36,6.38442516]
[1751300374310,6.3523,157.39,157.35,37.22]
[1751300374705,5.47782231,157.5,157.38,5.47782231]
[1751300374906,6.3493,157.46,157.4,5.47477797]
[1751300375100,6.3493,157.46,157.41,37.22]
[1751300375301,47.02577797,157.51,157.41,37.22]
[1751300375508,47.02577797,157.51,157.42,6.37673605]
[1751300375714,47.02577797,157.51,157.41,37.22]
[1751300375910,6.3488,157.47,157.44,6.3498]
[1751300376106,47.02577797,157.51,157.41,37.22]
[1751300376311,41.551,157.51,157.42,11.91914328]
[1751300376511,41.551,157.51,157.44,6.3499]
[1751300376711,41.551,157.51,157.45,6.44436531]
[1751300376912,41.551,157.51,157.42,5.47477797]
[1751300377214,6.3486,157.48,157.45,6.3496]
[1751300377402,41.551,157.51,157.45,6.3496]
[1751300377902,6.3484,157.48,157.45,6.3496]
[1751300378105,41.551,157.51,157.46,6.46123879]
[1751300378307,41.551,157.51,157.42,5.47477797]
[1751300378512,4.331,157.51,157.47,6.3485]
[1751300378705,42.69477797,157.54,157.48,6.46123916]
[1751300379014,42.69477797,157.54,157.45,37.22]
[1751300379203,42.69477797,157.54,157.46,6.46442168]
[1751300379408,42.69477797,157.54,157.47,6.46442168]
[1751300379702,42.69477797,157.54,157.48,6.46442168]
[1751300379906,42.69477797,157.54,157.45,37.22]
[1751300380108,42.69477797,157.54,157.46,6.38636565]
[1751300380308,42.69477797,157.54,157.47,6.38636565]
[1751300380504,42.69477797,157.54,157.46,6.3492]
[1751300380706,42.69477797,157.54,157.47,6.38556475]
[1751300380914,6.3478,157.5,157.48,6.38556475]
[1751300381117,37.22,157.54,157.45,42.69477797]
[1751300381315,37.22,157.54,157.46,6.38744024]
[1751300381615,37.22,157.54,157.47,6.38744024]
[1751300381817,37.22,157.54,157.48,6.38744024]
[1751300382016,6.3471,157.52,157.49,12.73544024]
[1751300382218,6.3471,157.52,157.45,42.69477797]
[1751300382407,37.22,157.54,157.46,6.39085793]
[1751300382611,37.22,157.54,157.47,6.39085793]
[1751300382809,37.22,157.54,157.48,6.39085793]
[1751300383016,37.22,157.54,157.49,6.39085793]
[1751300383321,37.22,157.54,157.45,42.69477797]
[1751300383518,37.22,157.54,157.47,5.47477797]
[1751300383719,4.4711,157.55,157.48,6.39405769]
[1751300383919,4.4711,157.55,157.49,6.39405769]
[1751300384214,4.4711,157.55,157.47,5.47477797]
[1751300384215,6.3467,157.53,157.5,12.74145769]
[1751300384420,2.1964,157.55,157.51,6.39405769]
[1751300384616,2.1964,157.55,157.47,5.47477797]
[1751300384921,2.1964,157.55,157.48,6.39598628]
[1751300385121,2.1964,157.55,157.49,6.39598628]
[1751300385323,2.1964,157.55,157.47,6.3486]
[1751300385523,5.47477797,157.54,157.48,6.35832373]
[1751300385723,6.3482,157.49,157.46,6.3491]
[1751300386024,42.67477797,157.53,157.47,6.36428997]
[1751300386214,42.67477797,157.53,157.48,6.36428997]
[1751300386419,6.3483,157.49,157.45,37.22]
[1751300386619,42.67477797,157.53,157.46,6.36546511]
[1751300386820,42.67477797,157.53,157.47,6.36546511]
[1751300387123,42.67477797,157.53,157.48,6.36546511]
[1751300387318,42.67477797,157.53,157.45,37.22]
[1751300387628,2.0914,157.56,157.49,5.47477797]
[1751300387823,39.421,157.59,157.5,43.57732415]
[1751300388023,39.421,157.59,157.51,6.37732415]
[1751300388324,39.421,157.59,157.52,6.37732415]
[1751300388528,6.3459,157.55,157.53,6.37732415]
[1751300388720,6.3459,157.55,157.51,6.347]
[1751300388929,39.421,157.59,157.52,6.38027513]
[1751300389124,39.421,157.59,157.53,6.38027513]
[1751300389326,39.421,157.59,157.5,37.2]
[1751300389327,44.89577797,157.59,157.5,37.2]
[1751300389519,176.65577797,157.59,157.51,6.38222797]
[1751300389726,5.47477797,157.57,157.52,6.38222797]
[1751300389924,6.3475,157.51,157.47,6.3487]
[1751300390128,5.47477797,157.53,157.48,6.38649789]
[1751300390321,5.47477797,157.51,157.43,37.04]
[1751300390524,5.47477797,157.51,157.44,6.390915]
[1751300390729,42.51477797,157.51,157.45,6.390915]
[1751300390923,42.51477797,157.51,157.46,6.390915]
[1751300391121,42.51477797,157.51,157.43,37.04]
[1751300391326,42.51477797,157.51,157.44,6.36243595]
[1751300391523,42.51477797,157.51,157.45,6.36243595]
[1751300391724,6.3487,157.48,157.46,6.36243595]
[1751300391930,6.3487,157.48,157.44,6.3498]
[1751300392126,42.51477797,157.51,157.44,6.3498]
[1751300392638,42.51477797,157.51,157.43,43.3903]
[1751300393032,42.51477797,157.51,157.43,37.04]
[1751300393633,6.3495,157.46,157.43,37.04]
[1751300393931,6.3495,157.46,157.43,43.3902]
[1751300395040,6.3489,157.47,157.44,6.35]
[1751300395238,42.51477797,157.51,157.43,37.04]
[1751300395427,6.3496,157.45,157.42,6.3506]
[1751300395631,42.51477797,157.51,157.43,6.15592831]
[1751300395828,5.47477797,157.49,157.4,42.51477797]
[1751300396135,2.2263,157.48,157.41,6.15861336]
[1751300396334,2.2263,157.48,157.4,37.04]
[1751300396536,4.497,157.48,157.4,37.04]
[1751300396728,6.3508,157.43,157.4,37.04]
[1751300396933,37.04,157.47,157.38,5.47477797]
[1751300397130,42.51477797,157.47,157.39,6.15313156]
[1751300397329,6.3507,157.43,157.4,6.15313156]
[1751300397535,42.51477797,157.47,157.4,6.15313156]
[1751300397844,6.3515,157.41,157.38,6.3523]
[1751300398139,42.51477797,157.47,157.39,6.15262023]
[1751300398337,42.51477797,157.47,157.37,37.04]
[1751300398533,42.51477797,157.47,157.38,6.15413245]
[1751300398740,42.51477797,157.47,157.39,6.15413245]
[1751300398940,42.51477797,157.47,157.37,37.04]
[1751300399135,6.3511,157.42,157.38,12.50548576]
[1751300399337,42.51477797,157.47,157.39,6.15318576]
[1751300399528,6.3515,157.41,157.37,43.3926]
[1751300400339,6.3515,157.41,157.35,5.47477797]
[1751300400340,42.51477797,157.43,157.36,6.353]
[1751300400537,37.04,157.43,157.34,37.04]
[1751300400730,6.3508,157.43,157.39,6.3518]
[1751300400929,2.2465,157.44,157.36,5.47477797]
[1751300401238,2.2465,157.44,157.37,6.20248126]
[1751300401434,6.3509,157.42,157.38,6.20248126]
[1751300401634,2.2465,157.44,157.39,6.20248126]
[1751300401832,6.3511,157.42,157.39,6.3519]
[1751300402038,6.3511,157.42,157.38,5.47477797]
[1751300402236,6.3511,157.42,157.39,6.22565675]
[1751300402442,6.3511,157.42,157.39,6.3518]
[1751300402739,4.497,157.48,157.38,42.51477797]
[1751300402740,47.01177797,157.48,157.38,42.51477797]
[1751300402935,41.537,157.48,157.42,6.3506]
[1751300403140,47.01177797,157.48,157.38,37.04]
[1751300403439,41.537,157.48,157.39,12.57203772]
[1751300403637,6.3512,157.42,157.39,6.3517]
[1751300403841,6.3512,157.42,157.4,6.21583079]
[1751300404043,6.3512,157.42,157.39,6.3517]
[1751300404446,6.3513,157.41,157.39,6.3517]
[1751300404643,5.47477797,157.47,157.4,6.3516]
[1751300404939,6.3495,157.46,157.39,5.47477797]
[1751300405141,41.537,157.48,157.42,6.3506]
[1751300405337,41.537,157.48,157.41,5.47477797]
[1751300406044,41.537,157.48,157.43,6.3502]
[1751300406542,6.3495,157.46,157.43,6.3502]
[1751300406747,144.3125,157.54,157.43,6.3502]
[1751300406748,5.47002139,157.57,157.45,5.47002139]
[1751300406941,6.3465,157.53,157.46,5.47002139]
[1751300407245,2.1606,157.54,157.49,6.348]
[1751300407544,6.3468,157.53,157.49,6.348]
[1751300407743,6.3468,157.53,157.5,6.3476]
[1751300407937,2.1606,157.54,157.43,37.04]
[1751300408239,6.3464,157.53,157.49,6.3477]
[1751300408443,6.3464,157.53,157.46,5.47002139]
[1751300409036,2.1606,157.54,157.46,5.47002139]
[1751300409243,2.1606,157.54,157.48,5.47002139]
[1751300409438,2.1606,157.54,157.47,37.04]
[1751300409839,6.3476,157.51,157.48,6.3481]
[1751300410143,42.51002139,157.53,157.43,37.04]
[1751300410443,42.51002139,157.53,157.44,6.13944909]
[1751300410444,5.47002139,157.49,157.44,6.13944909]
[1751300410632,5.47002139,157.47,157.37,37.04]
[1751300410835,2.1139,157.46,157.38,6.1462532]
[1751300411037,8.4632,157.46,157.38,5.47002139]
[1751300411340,2.1139,157.46,157.39,6.14825974]
[1751300411541,6.3503,157.44,157.41,6.3512]
[1751300411742,6.3503,157.44,157.38,5.47002139]
[1751300411938,6.3497,157.45,157.42,6.3506]
[1751300412439,6.3442,157.59,157.43,691.77864103]
[1751300412633,4.3403,157.62,157.5,5.4738682]
[1751300412835,4.3403,157.62,157.51,43.18477283]
[1751300413043,6.3455,157.56,157.52,6.14477283]
[1751300413239,6.3455,157.56,157.5,37.04]
[1751300413444,5.4738682,157.6,157.5,42.5138682]
[1751300413643,4.3403,157.62,157.52,5.4738682]
[1751300413842,4.3403,157.62,157.54,5.4738682]
[1751300414038,4.3403,157.62,157.58,6.3443]
[1751300414238,4.3403,157.62,157.55,37.04]
[1751300414743,9.80589928,157.62,157.55,37.04]
[1751300414945,9.80589928,157.62,157.51,42.50559928]
[1751300415141,9.80589928,157.62,157.53,6.346]
[1751300416049,5.46559928,157.6,157.48,42.50559928]
[1751300416246,37.04,157.59,157.48,42.50559928]
[1751300416445,6.3457,157.55,157.48,42.50559928]
[1751300416641,37.04,157.59,157.48,42.50559928]
[1751300417239,6.3459,157.55,157.51,6.3469]
[1751300418346,6.3459,157.55,157.44,5.59674377]
[1751300418347,5.46559928,157.54,157.44,5.59674377]
[1751300418545,11.91369928,157.54,157.45,42.07705647]
[1751300418846,11.91369928,157.54,157.46,5.03705647]
[1751300419043,11.91369928,157.54,157.45,37.04]
[1751300419247,6.3479,157.5,157.46,6.3491]
[1751300419443,11.91369928,157.54,157.46,6.3491]
[1751300419646,5.46559928,157.53,157.46,6.3491]
[1751300420041,5.46559928,157.51,157.45,37.04]
[1751300420444,6.3484,157.48,157.43,548.62]
[1751300421651,5.46992262,157.58,157.47,5.46992262]
[1751300421947,11.65072262,157.58,157.48,36.9]
[1751300422148,11.65072262,157.58,157.49,6.3478]
[1751300422850,6.3466,157.53,157.49,6.3478]
[1751300423051,6.3466,157.53,157.5,6.3475]
[1751300423346,6.3458,157.55,157.48,36.9]
[1751300423547,6.1808,157.58,157.49,5.46992262]
[1751300424053,6.3453,157.56,157.52,6.3465]
[1751300424844,6.3457,157.55,157.52,6.3465]
[1751300425649,5.46992262,157.56,157.49,6.348]
[1751300425853,5.46992262,157.56,157.48,36.9]
[1751300426245,6.3466,157.53,157.49,6.3477]
[1751300426449,19.46620661,157.75,157.48,36.9]
[1751300426655,5.47039883,157.62,157.53,6.3461]
[1751300426850,5.47039883,157.62,157.53,43.2261]
[1751300427052,5.47039883,157.62,157.53,36.88]
[1751300427356,36.88,157.61,157.53,36.88]
[1751300427651,6.3456,157.55,157.51,6.3468]
[1751300427852,5.47039883,157.6,157.5,42.35039883]
[1751300428448,6.3458,157.55,157.51,6.347]
[1751300428650,5.47039883,157.6,157.5,42.35039883]
[1751300428848,6.3454,157.56,157.5,42.35039883]
[1751300429251,5.47039883,157.59,157.5,42.35039883]
[1751300429555,5.47039883,157.59,157.52,6.3466]
[1751300429754,5.47039883,157.59,157.5,36.88]
[1751300430055,6.3457,157.55,157.52,6.3467]
[1751300430255,5.47039883,157.57,157.5,36.88]
[1751300430444,4.3321,157.56,157.5,36.88]
[1751300430844,4.3321,157.56,157.47,36.88]
[1751300431046,6.5154,157.56,157.47,36.88]
[1751300431252,7.87119045,157.63,157.54,5.47039883]
[1751300431549,4.3321,157.64,157.56,5.47039883]
[1751300431750,6.343,157.62,157.56,42.35039883]
[1751300431950,4.3321,157.64,157.56,42.35039883]
[1751300432257,6.3427,157.63,157.58,6.3442]
[1751300432458,4.3321,157.64,157.58,6.3442]
[1751300432950,9.80249883,157.64,157.56,36.88]
[1751300433356,6.3434,157.61,157.57,6.3445]
[1751300433544,6.3434,157.61,157.56,36.88]
[1751300434458,6.3437,157.6,157.56,36.88]
[1751300435053,6.3437,157.6,157.57,6.3445]
[1751300435455,6.3432,157.61,157.58,6.3441]
[1751300435757,4.3321,157.64,157.56,42.34483716]
[1751300435960,6.3436,157.6,157.56,42.34483716]
[1751300436655,46.67693716,157.64,157.56,36.88]
[1751300437047,6.3438,157.6,157.56,36.88]
[1751300437254,6.3438,157.6,157.57,6.3446]
[1751300437459,41.2121,157.64,157.56,36.88]
[1751300437661,6.3442,157.59,157.56,6.3451]
[1751300437957,46.67693716,157.64,157.53,36.88]
[1751300438356,6.3446,157.58,157.55,6.3454]
[1751300438552,46.67693716,157.64,157.53,36.88]
[1751300438553,41.2121,157.64,157.53,36.88]
[1751300438762,5.46483716,157.62,157.53,43.2261]
[1751300439355,5.46483716,157.62,157.52,6.3467]
[1751300440150,5.46483716,157.6,157.49,6.3478]
[1751300440458,5.46483716,157.58,157.48,5.46483716]
[1751300440656,41.2943,157.57,157.48,5.46483716]
[1751300440862,5.46483716,157.56,157.46,42.34483716]
[1751300441065,5.46483716,157.54,157.46,36.88]
[1751300441958,6.3483,157.49,157.46,36.88]
[1751300442260,6.3483,157.49,157.43,585.5]
[1751300442463,6.3488,157.47,157.43,43.2303]
[1751300442659,7.60233716,157.52,157.43,36.88]
[1751300442853,7.60233716,157.52,157.4,36.88]
[1751300442854,2.1375,157.52,157.4,36.88]
[1751300443054,5.46483716,157.48,157.4,36.88]
[1751300443454,6.3493,157.46,157.42,6.3505]
[1751300444166,6.3493,157.46,157.4,36.88]
[1751300444567,6.3493,157.46,157.42,6.3506]
[1751300444764,36.88,157.49,157.4,42.34483716]
[1751300445263,36.88,157.49,157.44,6.3498]
[1751300445765,36.88,157.49,157.4,42.34483716]
[1751300445966,5.46483716,157.48,157.38,36.88]
[1751300446164,5.46483716,157.46,157.39,12.52316264]
[1751300446359,5.46483716,157.46,157.38,36.88]
[1751300447362,5.46483716,157.44,157.35,43.2535]
[1751300447562,5.46483716,157.42,157.36,6.17676106]
[1751300447759,5.46483716,157.42,157.35,36.9]
[1751300448165,6.3531,157.37,157.35,36.9]
[1751300448474,5.46483716,157.42,157.35,36.9]
[1751300448670,5.46483716,157.42,157.32,597.15963716]
[1751300448872,4.4827,157.41,157.33,6.17833833]
[1751300449059,4.4827,157.41,157.32,597.15963716]
[1751300449266,4.4827,157.41,157.33,12.53217231]
[1751300449464,4.4827,157.41,157.32,590.80483716]
[1751300449661,5.46483716,157.4,157.32,585.34]
[1751300449868,5.46483716,157.38,157.3,36.9]
[1751300450269,6.3544,157.34,157.3,36.9]
[1751300450772,6.3549,157.32,157.3,36.9]
[1751300451771,5.46483716,157.38,157.3,36.9]
[1751300452166,6.3536,157.36,157.31,6.355]
[1751300452363,36.9,157.39,157.3,42.36483716]
[1751300452762,36.9,157.39,157.31,6.355]
[1751300452967,36.9,157.39,157.3,42.36483716]
[1751300453364,6.3535,157.36,157.32,6.3547]
[1751300453569,36.9,157.39,157.31,36.94]
[1751300453866,6.3535,157.36,157.32,6.3548]
[1751300454374,6.3532,157.37,157.33,6.3543]
[1751300454675,36.9,157.39,157.33,6.3543]
[1751300455075,4.4827,157.41,157.32,5.46483716]
[1751300455378,36.94,157.42,157.34,5.46483716]
[1751300455678,41.1942,157.45,157.35,36.94]
[1751300455873,5.46483716,157.44,157.35,36.94]
[1751300456078,5.46483716,157.44,157.35,43.2935]
[1751300456282,5.46483716,157.44,157.35,36.94]
[1751300456474,6.3529,157.37,157.35,36.94]
[1751300456674,6.3529,157.37,157.32,42.40483716]
[1751300456979,5.46483716,157.42,157.33,6.3543]
[1751300456980,36.94,157.41,157.33,6.3543]
[1751300457179,5.46483716,157.4,157.31,5.46483716]
[1751300457373,5.46483716,157.4,157.32,6.3547]
[1751300457577,6.3536,157.36,157.32,6.3547]
[1751300457980,5.46483716,157.4,157.32,6.3547]
[1751300458983,5.46483716,157.36,157.27,36.94]
[1751300459174,6.3541,157.34,157.27,42.40483716]
[1751300459369,5.46483716,157.37,157.31,6.355]
[1751300459569,36.94,157.38,157.31,6.355]
[1751300459775,2.079,157.4,157.31,36.94]
[1751300459981,2.079,157.4,157.32,6.3546]
[1751300460381,6.3535,157.36,157.32,6.3546]
[1751300460871,6.353,157.37,157.31,36.94]
[1751300461070,6.353,157.37,157.31,42.40483716]
[1751300461274,42.40483716,157.41,157.31,42.40483716]
[1751300461679,5.46483716,157.43,157.33,5.46483716]
[1751300461878,6.3517,157.4,157.36,6.353]
[1751300462380,5.46483716,157.43,157.35,36.94]
[1751300463081,6.3524,157.39,157.35,43.2935]
[1751300463282,5.46483716,157.43,157.35,36.94]
[1751300463582,6.3515,157.41,157.37,6.3528]
[1751300463881,5.46483716,157.43,157.35,36.94]
[1751300464182,6.3523,157.39,157.35,43.2935]
[1751300464580,6.3519,157.4,157.36,6.3532]
[1751300464979,5.46483716,157.43,157.35,36.94]
[1751300465177,5.46483716,157.43,157.37,6.3526]
[1751300465377,5.46483716,157.43,157.35,36.94]
[1751300465576,6.3509,157.42,157.39,6.3518]
[1751300466077,39.0237,157.44,157.35,36.94]
[1751300466385,21.85934864,157.6,157.38,5.46483716]
[1751300466386,36.96,157.47,157.38,5.46483716]
[1751300466581,36.96,157.47,157.39,36.96]
[1751300466782,6.3498,157.45,157.42,6.3506]
[1751300467482,36.96,157.47,157.39,36.96]
[1751300468079,6.3495,157.46,157.39,36.96]
[1751300468584,6.3495,157.46,157.43,6.3502]
[1751300468883,6.3497,157.45,157.43,6.3502]
[1751300469481,6.3496,157.46,157.43,6.3502]
[1751300469682,36.96,157.47,157.43,6.3502]
[1751300469882,36.96,157.47,157.44,6.3499]
[1751300470079,36.96,157.47,157.39,36.96]
[1751300470981,2.2254,157.49,157.4,5.46483716]
[1751300471179,5.46483716,157.47,157.39,36.96]
[1751300471382,7.69023716,157.49,157.39,36.96]
[1751300471576,6.3498,157.45,157.39,36.96]
[1751300471984,7.69023716,157.49,157.39,36.96]
[1751300472495,2.2254,157.49,157.4,5.46483716]
[1751300472976,6.3493,157.46,157.4,5.46483716]
[1751300473178,5.47394532,157.57,157.45,5.47394532]
[1751300473483,5.47394532,157.57,157.51,6.3471]
[1751300473677,5.47394532,157.57,157.49,36.94]
[1751300473881,5.47027157,157.57,157.49,36.94]
[1751300474077,67.80637885,157.59,157.53,5.47027157]
[1751300474283,41.2065,157.63,157.54,36.94]
[1751300474482,4.2665,157.63,157.55,5.47027157]
[1751300474989,4.2665,157.63,157.59,6.3437]
[1751300475287,4.2665,157.63,157.55,5.47027157]
[1751300475487,6.3434,157.61,157.57,6.3445]
[1751300475689,4.2665,157.63,157.55,5.47027157]
[1751300475986,5.47027157,157.7,157.54,36.94]
[1751300475987,5.46377341,157.73,157.61,5.46377341]
[1751300476192,11.78257341,157.73,157.62,36.94]
[1751300476388,6.3405,157.68,157.63,6.3421]
[1751300476595,6.3405,157.68,157.62,36.94]
[1751300477090,6.3405,157.68,157.64,6.3419]
[1751300477391,6.3401,157.69,157.62,36.94]
[1751300477590,6.3401,157.69,157.65,6.3413]
[1751300478796,6.3188,157.73,157.66,43.261]
[1751300479207,6.3188,157.73,157.66,36.92]
[1751300479399,6.3188,157.73,157.63,36.92]
[1751300479400,42.37856224,157.72,157.63,36.92]
[1751300479606,5.45856224,157.7,157.62,36.92]
[1751300479905,5.45856224,157.7,157.6,42.37856224]
[1751300480102,36.92,157.72,157.61,36.92]
[1751300480303,5.45856224,157.71,157.61,36.92]
[1751300480504,5.45856224,157.69,157.61,36.92]
[1751300481306,6.3424,157.63,157.61,36.92]
[1751300481495,5.45856224,157.69,157.61,36.92]
[1751300481904,6.3418,157.65,157.6,43.1833]
[1751300482103,6.3418,157.65,157.6,36.84]
[1751300482304,5.45856224,157.71,157.6,36.84]
[1751300482505,6.3411,157.67,157.61,5.45856224]
[1751300482701,36.92,157.72,157.6,36.84]
[1751300482702,36.92,157.72,157.63,5.45856224]
[1751300482909,6.3404,157.68,157.65,6.3416]
[1751300483308,6.3404,157.68,157.64,36.84]
[1751300483607,6.3404,157.68,157.64,43.1817]
[1751300483909,6.34,157.69,157.64,36.84]
[1751300484102,11.77736224,157.73,157.65,6.3415]
[1751300484505,6.34,157.69,157.65,6.3415]
[1751300484906,6.3188,157.73,157.64,43.1818]
[1751300485206,6.3188,157.73,157.64,36.84]
[1751300485406,6.3188,157.73,157.66,6.3411]
[1751300485707,6.3404,157.68,157.64,36.84]
[1751300485907,5.45856224,157.72,157.64,36.84]
[1751300486208,6.341,157.67,157.64,36.84]
[1751300486606,6.341,157.67,157.64,43.1818]
[1751300487408,6.341,157.67,157.64,36.84]
[1751300487608,6.3412,157.66,157.64,36.84]
[1751300487907,5.45856224,157.7,157.61,36.84]
[1751300488803,5.45856224,157.68,157.61,36.84]
[1751300489306,68.62280609,157.74,157.61,36.84]
[1751300489504,68.62280609,157.74,157.65,5.46248761]
[1751300489803,68.62280609,157.74,157.66,36.84]
[1751300490008,68.62280609,157.74,157.65,36.84]
[1751300490408,6.3394,157.71,157.67,6.3407]
[1751300490802,68.62280609,157.74,157.67,6.3407]
[1751300491007,6.3394,157.71,157.67,6.3407]
[1751300491409,6.3405,157.68,157.62,36.84]
[1751300491814,36.84,157.73,157.62,36.84]
[1751300492001,5.45835155,157.7,157.62,36.84]